fUST/lending_fUST_20241109
["ID","MTS","AMOUNT","RATE_DAILY","PERIOD"]
[341678297,1731087039543,-500.0,0.00021917,2]
[341678298,1731087039552,-500.0,0.00021917,2]
[341678299,1731087039562,-500.0,0.00021917,2]
[341678300,1731087039572,-500.0,0.00021917,2]
[341678301,1731087039583,-500.0,0.00021917,2]
[341678302,1731087039592,-503.12476663,0.00021917,2]
[341678303,1731087039602,-500.0,0.00021917,2]
[341678304,1731087039611,-500.0,0.00021917,2]
[341678305,1731087039622,-500.0,0.00021917,2]
[341678306,1731087039631,-500.0,0.00021917,2]
[341678307,1731087039641,-500.0,0.00021917,2]
[341678308,1731087039650,-500.0,0.00021917,2]
[341678310,1731087039660,-500.0,0.00021917,2]
[341678312,1731087039669,-500.0,0.00021917,2]
[341678314,1731087039678,-500.0,0.00021917,2]
[341678316,1731087039687,-500.0,0.00021917,2]
[341678317,1731087039697,-500.0,0.00021917,2]
[341678318,1731087039706,-500.0,0.00021917,2]
[341678319,1731087039715,-500.0,0.00021917,2]
[341678321,1731087039724,-500.0,0.00021917,2]
[341678323,1731087039733,-621.3355164,0.00021917,2]
[341678324,1731087039744,-500.0,0.00021917,2]
[341678326,1731087039753,-500.0,0.00021917,2]
[341678327,1731087039763,-500.0,0.00021917,2]
[341678328,1731087039772,-500.0,0.00021917,2]
[341678329,1731087039782,-500.0,0.00021917,2]
[341678330,1731087039792,-500.0,0.00021917,2]
[341678331,1731087039801,-500.0,0.00021917,2]
[341678332,1731087039811,-500.0,0.00021917,2]
[341678333,1731087039820,-500.0,0.00021917,2]
[341678334,1731087039830,-500.0,0.00021917,2]
[341678335,1731087039839,-500.0,0.00021917,2]
[341678336,1731087039848,-500.0,0.00021917,2]
[341678337,1731087039857,-500.0,0.00021917,2]
[341678338,1731087039867,-500.0,0.00021917,2]
[341678339,1731087039877,-500.0,0.00021917,2]
[341678340,1731087039887,-500.0,0.00021917,2]
[341678341,1731087039896,-500.0,0.00021917,2]
[341678342,1731087039906,-500.0,0.00021917,2]
[341678343,1731087039915,-500.0,0.00021917,2]
[341678344,1731087039924,-500.0,0.00021917,2]
[341678345,1731087039934,-500.0,0.00021917,2]
[341678346,1731087039943,-500.0,0.00021917,2]
[341678347,1731087039952,-500.0,0.00021917,2]
[341678348,1731087039961,-500.0,0.00021917,2]
[341678349,1731087039971,-500.0,0.00021917,2]
[341678350,1731087039980,-500.0,0.00021917,2]
[341678351,1731087039995,-500.0,0.00021917,2]
[341678352,1731087040004,-500.0,0.00021917,2]
[341678353,1731087040121,-500.0,0.00021917,2]
[341678354,1731087040131,-500.0,0.00021917,2]
[341678355,1731087040141,-500.0,0.00021917,2]
[341678356,1731087040151,-500.0,0.00021917,2]
[341678357,1731087040160,-500.0,0.00021917,2]
[341678358,1731087040169,-500.0,0.00021917,2]
[341678359,1731087040178,-500.0,0.00021917,2]
[341678360,1731087040187,-500.0,0.00021917,2]
[341678361,1731087040197,-500.0,0.00021917,2]
[341678362,1731087040206,-500.0,0.00021917,2]
[341678364,1731087040216,-611.46,0.00021917,2]
[341678365,1731087040226,-500.0,0.00021917,2]
[341678366,1731087040240,-500.0,0.00021917,2]
[341678367,1731087040251,-500.0,0.00021917,2]
[341678368,1731087040260,-500.0,0.00021917,2]
[341678369,1731087040270,-500.0,0.00021917,2]
[341678370,1731087040280,-2336.0,0.00021917,2]
[341678371,1731087040290,-500.0,0.00021917,2]
[341678372,1731087040301,-500.0,0.00021917,2]
[341678373,1731087040310,-500.0,0.00021917,2]
[341678374,1731087040319,-500.0,0.00021917,2]
[341678375,1731087040328,-500.0,0.00021917,2]
[341678376,1731087040338,-500.0,0.00021917,2]
[341678377,1731087040348,-158.59121031,0.00021917,2]
[341678378,1731087040358,-637.47,0.00021917,2]
[341678379,1731087040367,-613.54,0.00021917,2]
[341678380,1731087040377,-500.0,0.00021917,2]
[341678381,1731087040386,-500.0,0.00021917,2]
[341678382,1731087040395,-500.0,0.00021917,2]
[341678383,1731087040405,-500.0,0.00021917,2]
[341678384,1731087040418,-500.0,0.00021917,2]
[341678385,1731087040428,-500.0,0.00021917,2]
[341678386,1731087040438,-500.0,0.00021917,2]
[341678387,1731087040447,-500.0,0.00021917,2]
[341678388,1731087040457,-500.0,0.00021917,2]
[341678389,1731087040467,-500.0,0.00021917,2]
[341678390,1731087040477,-500.0,0.00021917,2]
[341678391,1731087040490,-500.0,0.00021917,2]
[341678392,1731087040500,-250.0,0.00021917,2]
[341678393,1731087040509,-169.38851035,0.00021917,2]
[341678394,1731087040519,-500.0,0.00021917,2]
[341678395,1731087040528,-500.0,0.00021917,2]
[341678396,1731087040538,-500.0,0.00021917,2]
[341678397,1731087040547,-500.0,0.00021917,2]
[341678398,1731087040556,-500.0,0.00021917,2]
[341678399,1731087040565,-500.0,0.00021917,2]
[341678400,1731087040575,-500.0,0.00021917,2]
[341678401,1731087040585,-500.0,0.00021917,2]
[341678402,1731087040594,-500.0,0.00021917,2]
[341678403,1731087040604,-500.0,0.00021917,2]
[341678404,1731087040613,-500.0,0.00021917,2]
[341678405,1731087040623,-500.0,0.00021917,2]
[341678406,1731087040632,-500.0,0.00021917,2]
[341678407,1731087040641,-500.0,0.00021917,2]
[341678408,1731087040651,-500.0,0.00021917,2]
[341678409,1731087040660,-514.82940442,0.00021917,2]
[341678410,1731087040670,-500.0,0.00021917,2]
[341678411,1731087040679,-500.0,0.00021917,2]
[341678412,1731087040688,-514.55172765,0.00021917,2]
[341678413,1731087040697,-500.0,0.00021917,2]
[341678414,1731087040706,-500.0,0.00021917,2]
[341678415,1731087040716,-500.0,0.00021917,2]
[341678416,1731087040726,-500.0,0.00021917,2]
[341678417,1731087040739,-500.0,0.00021917,2]
[341678418,1731087040749,-500.0,0.00021917,2]
[341678419,1731087040758,-500.0,0.00021917,2]
[341678420,1731087040767,-500.0,0.00021917,2]
[341678421,1731087040776,-500.0,0.00021917,2]
[341678422,1731087040785,-500.0,0.00021917,2]
[341678423,1731087040795,-500.0,0.00021917,2]
[341678424,1731087040805,-500.0,0.00021917,2]
[341678425,1731087040814,-171.070896,0.00021918,2]
[341678426,1731087040823,-500.0,0.00021918,2]
[341678427,1731087040833,-500.0,0.00021918,2]
[341678428,1731087040842,-403.9226462,0.00021918,2]
[341678429,1731087040851,-500.0,0.00021973,2]
[341678430,1731087040861,-500.0,0.00021973,2]
[341678431,1731087040870,-500.0,0.00021973,2]
[341678432,1731087040880,-500.0,0.00021973,2]
[341678433,1731087040889,-500.0,0.00021973,2]
[341678434,1731087040898,-453.44102107,0.00021973,2]
[341678435,1731087040908,-465.4688816,0.00021973,2]
[341678436,1731087040917,-500.0,0.00021973,2]
[341678437,1731087040926,-500.0,0.00021973,2]
[341678438,1731087040936,-500.0,0.00021973,2]
[341678439,1731087040945,-500.0,0.00021973,2]
[341678440,1731087040955,-511.26945354,0.00021973,2]
[341678441,1731087040964,-500.0,0.00021973,2]
[341678442,1731087040976,-501.43262596,0.00021973,2]
[341678443,1731087040991,-500.0,0.00021973,2]
[341678444,1731087041003,-173.79557726,0.00021973,2]
[341678445,1731087041013,-500.0,0.00021973,2]
[341678446,1731087041023,-500.69773175,0.00021973,2]
[341678447,1731087041034,-500.0,0.00021973,2]
[341678448,1731087041044,-500.0,0.00021973,2]
[341678449,1731087041054,-500.0,0.00021973,2]
[341678450,1731087041063,-500.0,0.00021973,2]
[341678451,1731087041072,-13157.18729892,0.00022,30]
[341678452,1731087041082,-500.0,0.00022191,2]
[341678453,1731087041091,-169.155966,0.00022191,2]
[341678454,1731087041101,-500.0,0.00022191,2]
[341678455,1731087041110,-500.0,0.00022191,2]
[341678456,1731087041119,-500.0,0.00022191,2]
[341678457,1731087041127,-500.0,0.00022191,2]
[341678458,1731087041137,-500.0,0.00022191,2]
[341678459,1731087041146,-500.0,0.00022191,2]
[341678460,1731087041156,-500.0,0.00022191,2]
[341678461,1731087041166,-500.0,0.00022191,2]
[341678462,1731087041175,-284.72704998,0.00022191,2]
[341678463,1731087041185,-500.0,0.00022191,2]
[341678464,1731087041194,-500.0,0.00022191,2]
[341678465,1731087041204,-500.0,0.00022191,2]
[341678466,1731087041213,-500.0,0.00022191,2]
[341678467,1731087041223,-500.0,0.00022191,2]
[341678468,1731087041232,-588.79458872,0.00022191,2]
[341678469,1731087041459,-500.0,0.00022191,2]
[341678470,1731087041469,-500.0,0.00022191,2]
[341678471,1731087041479,-500.0,0.00022191,2]
[341678472,1731087041493,-500.0,0.00022191,2]
[341678473,1731087041502,-315.91693964,0.00022191,2]
[341678474,1731087041512,-500.0,0.00022191,2]
[341678475,1731087041521,-500.0,0.00022191,2]
[341678476,1731087041530,-500.0,0.00022191,2]
[341678477,1731087041539,-500.0,0.00022191,2]
[341678478,1731087041548,-500.0,0.00022191,2]
[341678479,1731087041558,-500.0,0.00022191,2]
[341678480,1731087041569,-500.0,0.00022191,2]
[341678481,1731087041578,-500.0,0.00022191,2]
[341678482,1731087041587,-500.0,0.00022191,2]
[341678483,1731087041597,-500.0,0.00022191,2]
[341678484,1731087041607,-500.0,0.00022191,2]
[341678485,1731087041616,-500.0,0.00022191,2]
[341678486,1731087041626,-500.0,0.00022191,2]
[341678487,1731087041635,-500.0,0.00022191,2]
[341678488,1731087041644,-500.0,0.00022191,2]
[341678489,1731087041654,-500.30097221,0.00022191,2]
[341678490,1731087041663,-500.0,0.00022191,2]
[341678491,1731087041673,-500.0,0.00022191,2]
[341678492,1731087041682,-500.0,0.00022191,2]
[341678493,1731087041691,-500.0,0.00022191,2]
[341678494,1731087041700,-500.0,0.00022191,2]
[341678495,1731087041709,-328.71817147,0.00022191,2]
[341678496,1731087041718,-500.0,0.00022191,2]
[341678497,1731087041727,-500.0,0.00022191,2]
[341678498,1731087041737,-500.0,0.00022191,2]
[341678499,1731087041746,-500.0,0.00022191,2]
[341678500,1731087041755,-500.0,0.00022191,2]
[341678501,1731087041764,-500.0,0.00022191,2]
[341678502,1731087041773,-500.0,0.00022191,2]
[341678503,1731087041784,-500.0,0.00022191,2]
[341678504,1731087041793,-500.0,0.00022191,2]
[341678505,1731087041803,-500.0,0.00022191,2]
[341678506,1731087041812,-500.0,0.00022191,2]
[341678507,1731087041822,-500.0,0.00022191,2]
[341678508,1731087041831,-500.0,0.00022191,2]
[341678509,1731087041840,-500.0,0.00022191,2]
[341678510,1731087041849,-500.0,0.00022191,2]
[341678511,1731087041859,-500.0,0.00022191,2]
[341678512,1731087041868,-500.0,0.00022191,2]
[341678513,1731087041877,-500.0,0.00022191,2]
[341678514,1731087041886,-500.0,0.00022191,2]
[341678515,1731087041895,-500.0,0.00022191,2]
[341678516,1731087041904,-500.0,0.00022191,2]
[341678517,1731087041914,-500.0,0.00022191,2]
[341678518,1731087041923,-500.0,0.00022191,2]
[341678519,1731087041932,-500.0,0.00022191,2]
[341678520,1731087041940,-500.0,0.00022191,2]
[341678521,1731087041950,-328.09861926,0.00022191,2]
[341678522,1731087041960,-500.0,0.00022191,2]
[341678523,1731087041969,-500.0,0.00022191,2]
[341678524,1731087041978,-500.0,0.00022191,2]
[341678525,1731087041990,-500.0,0.00022191,2]
[341678526,1731087041999,-573.86135289,0.00022191,2]
[341678527,1731087042009,-500.0,0.00022191,2]
[341678528,1731087042019,-500.0,0.00022212,2]
[341678529,1731087042028,-1217.609514,0.00022369,2]
[341678530,1731087042037,-500.0,0.00022465,2]
[341678531,1731087042047,-500.0,0.00022465,2]
[341678532,1731087042056,-174.57829496,0.00022465,2]
[341678533,1731087042066,-500.0,0.00022465,2]
[341678534,1731087042076,-646.90908228,0.00022465,2]
[341678535,1731087042085,-500.0,0.00022465,2]
[341678536,1731087042094,-500.0,0.00022465,2]
[341678537,1731087042104,-500.0,0.00022465,2]
[341678538,1731087042114,-500.0,0.00022465,2]
[341678539,1731087042123,-500.0,0.00022465,2]
[341678540,1731087042132,-500.0,0.00022465,2]
[341678541,1731087042141,-481.70307101,0.00022465,2]
[341678542,1731087042151,-500.0,0.00022465,2]
[341678543,1731087042160,-500.0,0.00022465,2]
[341678544,1731087042169,-500.0,0.00022465,2]
[341678545,1731087042178,-502.7,0.00022465,2]
[341678546,1731087042188,-500.0,0.00022465,2]
[341678547,1731087042197,-500.0,0.00022465,2]
[341678548,1731087042206,-500.0,0.00022465,2]
[341678549,1731087042216,-500.0,0.00022465,2]
[341678550,1731087042225,-500.0,0.00022465,2]
[341678551,1731087042237,-500.0,0.00022465,2]
[341678552,1731087042247,-500.0,0.00022465,2]
[341678553,1731087042256,-500.0,0.00022465,2]
[341678554,1731087042265,-500.0,0.00022465,2]
[341678555,1731087042274,-500.0,0.00022465,2]
[341678556,1731087042284,-500.0,0.00022465,2]
[341678557,1731087042294,-636.56632547,0.00022499,2]
[341678558,1731087042303,-500.0,0.00022739,2]
[341678559,1731087042313,-500.0,0.00022739,2]
[341678560,1731087042323,-500.0,0.00022739,2]
[341678561,1731087042332,-500.0,0.00022739,2]
[341678562,1731087042342,-500.0,0.00022739,2]
[341678563,1731087042351,-500.0,0.00022739,2]
[341678564,1731087042361,-500.0,0.00022739,2]
[341678565,1731087042370,-500.0,0.00022739,2]
[341678566,1731087042380,-176.18,0.00022739,2]
[341678567,1731087042390,-500.0,0.00022739,2]
[341678568,1731087042399,-500.0,0.00023013,2]
[341678569,1731087042410,-552.23,0.00023013,2]
[341678570,1731087042422,-647.05000001,0.00023013,2]
[341678571,1731087042431,-500.0,0.00023013,2]
[341678572,1731087042440,-500.0,0.00023013,2]
[341678573,1731087042449,-500.0,0.00023013,2]
[341678574,1731087042460,-467.85,0.00023287,2]
[341678575,1731087042469,-500.0,0.00023287,2]
[341678576,1731087042478,-500.0,0.00023287,2]
[341678577,1731087042491,-500.0,0.00023287,2]
[341678578,1731087042501,-502.93494812,0.00023342,2]
[341678579,1731087042510,-836.01285805,0.00023342,2]
[341678580,1731087042520,-282.86121685,0.00023342,2]
[341678581,1731087042529,-500.0,0.00023342,2]
[341678582,1731087042538,-500.0,0.00023342,2]
[341678583,1731087042547,-1000.0,0.00023342,2]
[341678584,1731087042557,-339.86593322,0.0002353,2]
[341678585,1731087042567,-500.0,0.00023561,2]
[341678586,1731087042577,-500.0,0.00023561,2]
[341678587,1731087042587,-500.0,0.00023561,2]
[341678588,1731087042597,-203.86358896,0.00023582,2]
[341678589,1731087042606,-480.33,0.00023835,2]
[341678591,1731087042616,-500.0,0.00023835,2]
[341678592,1731087042626,-500.0,0.00023835,2]
[341678593,1731087042635,-636.56632547,0.00024039,2]
[341678594,1731087042645,-473.41,0.00024109,2]
[341678595,1731087042655,-500.0,0.00024109,2]
[341678596,1731087042664,-500.0,0.00024383,2]
[341678597,1731087042674,-269.4472984,0.00024481,2]
[341678598,1731087042683,-366.82728573,0.00024481,2]
[341678599,1731087042694,-171.070896,0.00024482,2]
[341678600,1731087042703,-425.86,0.00024657,2]
[341678601,1731087042712,-500.0,0.00024658,2]
[341678602,1731087042721,-500.0,0.00024658,2]
[341678603,1731087042731,-226.23130733,0.00024658,2]
[341678604,1731087042743,-500.0,0.00024973,2]
[341678605,1731087042752,-500.0,0.00024973,2]
[341678606,1731087042762,-1039.60785688,0.00025,2]
[341678607,1731087042771,-60016.12334461,0.00025,2]
[341678608,1731087042780,-32157.23578331,0.0002509,2]
[341678609,1731087042789,-339.86593322,0.00025242,2]
[341678610,1731087042799,-636.56632547,0.00025578,2]
[341678611,1731087042808,-1500.0,0.00025847,2]
[341678612,1731087042817,-527.9450352,0.00026,2]
[341678613,1731087042826,-170.906,0.000261,12]
[341678614,1731087042835,-185.3555,0.00026183,2]
[341678615,1731087042844,-500.0,0.00026342,2]
[341678617,1731087042853,-1009.8225322,0.00026342,2]
[341678619,1731087042862,-215.07725,0.00026612,2]
[341678620,1731087042871,-820.74888955,0.00026665,2]
[341678621,1731087042880,-150.112233,0.000267,12]
[341678622,1731087042889,-339.86593322,0.00026955,2]
[341678623,1731087042995,-167571.12736223,0.00027,2]
[341678624,1731087043009,-151.0,0.00027,7]
[341678625,1731087043018,-636.56632547,0.00027118,2]
[341678626,1731087043027,-519.092,0.00027352,2]
[341678627,1731087043037,-2392.0,0.00027352,2]
[341678628,1731087043047,-500.0,0.00027397,2]
[341678629,1731087043056,-500.0,0.00027397,2]
[341678630,1731087043065,-500.0,0.00027397,2]
[341678631,1731087043075,-500.0,0.00027397,2]
[341678632,1731087043084,-408.84367548,0.00027397,2]
[341678633,1731087043094,-500.0,0.00027397,2]
[341678634,1731087043103,-500.0,0.00027397,2]
[341678635,1731087043112,-500.0,0.00027397,2]
[341678636,1731087043122,-500.0,0.00027397,2]
[341678637,1731087043131,-500.0,0.00027397,2]
[341678639,1731087043141,-500.0,0.00027397,2]
[341678640,1731087043150,-297.97735774,0.00027397,2]
[341678641,1731087043160,-150.112233,0.000274,17]
[341678642,1731087043169,-11714.90638567,0.00027541,3]
[341678643,1731087043179,-170.92542,0.00027641,2]
[341678644,1731087043188,-157.237,0.000278,30]
[341678645,1731087043197,-482.78744448,0.00027998,2]
[341678646,1731087043207,-150.112233,0.000281,14]
[341678647,1731087043216,-500.0,0.00028406,7]
[341678648,1731087043226,-1550.49691072,0.00028498,2]
[341678649,1731087043237,-1112.09,0.000285,2]
[341678650,1731087043246,-14656.64428388,0.00028593,2]
[341678651,1731087043345,-860.87,0.00028593,2]
[341678653,1731087043356,-18602.49543148,0.00028593,2]
[341678655,1731087043366,-600.0,0.00028621,2]
[341678657,1731087043375,-636.56632547,0.00028657,2]
[341678659,1731087043385,-677.28027222,0.00028667,2]
[341678660,1731087043394,-339.86593322,0.00028667,2]
[341678661,1731087043403,-605.58028055,0.00028673,5]
[341678662,1731087043414,-150.112233,0.000287,13]
[341678663,1731087043426,-150.112233,0.000287,19]
[341678664,1731087043435,-1751.27,0.00028711,10]
[341678665,1731087043445,-3004.36,0.00028711,10]
[341678666,1731087043455,-2503.63,0.00028711,10]
[341678667,1731087043465,-160.0,0.0002872,10]
[341678668,1731087043474,-151.0,0.00028721,7]
[341678669,1731087043483,-151.0,0.00028721,7]
[341678670,1731087043496,-151.0,0.00028721,7]
[341678671,1731087043505,-151.0,0.00028721,7]
[341678672,1731087043515,-151.0,0.00028721,7]
[341678673,1731087043524,-151.0,0.00028721,7]
[341678674,1731087043533,-151.0,0.00028721,7]
[341678675,1731087043542,-177.473528,0.00028721,7]
[341678676,1731087043551,-177.473528,0.00028721,7]
[341678677,1731087043561,-151.0,0.00028721,7]
[341678678,1731087043570,-220.148521,0.00028721,7]
[341678679,1731087043580,-151.0,0.00028721,7]
[341678680,1731087043589,-151.0,0.00028721,7]
[341678681,1731087043599,-151.0,0.00028721,7]
[341678682,1731087043609,-151.0,0.00028721,7]
[341678683,1731087043619,-216.916581,0.00028721,7]
[341678684,1731087043628,-152.975398,0.00028721,7]
[341678685,1731087043638,-207.677126,0.00028721,7]
[341678686,1731087043647,-216.916581,0.00028721,7]
[341678687,1731087043657,-151.0,0.00028721,7]
[341678688,1731087043666,-207.677126,0.00028721,7]
[341678689,1731087043674,-151.0,0.00028721,7]
[341678690,1731087043684,-151.0,0.00028721,7]
[341678691,1731087043693,-151.0,0.00028721,7]
[341678692,1731087043702,-151.0,0.00028721,7]
[341678693,1731087043711,-151.0,0.00028721,7]
[341678694,1731087043721,-151.0,0.00028721,7]
[341678695,1731087043730,-572.261443,0.00028721,7]
[341678696,1731087043740,-151.0,0.00028721,7]
[341678697,1731087043750,-572.261443,0.00028721,7]
[341678698,1731087043759,-151.0,0.00028721,7]
[341678699,1731087043769,-151.0,0.00028721,7]
[341678700,1731087043778,-151.0,0.00028721,7]
[341678701,1731087043787,-151.0,0.00028721,7]
[341678702,1731087043796,-304.699575,0.00028721,7]
[341678703,1731087043805,-304.699575,0.00028721,7]
[341678704,1731087043814,-295.42173,0.00028721,7]
[341678705,1731087043824,-295.42173,0.00028721,7]
[341678706,1731087043834,-151.0,0.00028721,7]
[341678707,1731087043844,-151.0,0.00028721,7]
[341678708,1731087043853,-151.0,0.00028721,7]
[341678709,1731087043863,-523.440522,0.00028721,7]
[341678710,1731087043872,-523.440522,0.00028721,7]
[341678711,1731087043882,-151.0,0.00028721,7]
[341678712,1731087043891,-33156.94566693,0.00028721,30]
[341678730,1731087046390,-500.0,0.00021917,2]
[341678731,1731087046400,-151.0,0.00027,7]
[341678732,1731087046411,-2086.36,0.00028711,10]
[341678733,1731087046425,-343.246593,0.00028721,7]
[341678735,1731087046434,-151.0,0.00028721,7]
[341678736,1731087046443,-24718.72139254,0.00028721,30]
[341678739,1731087121570,1000.0,0.00031836,30]
[341678740,1731087165934,40000.0,0.00027,60]
[341678741,1731087211990,694.44444444,0.00020843,2]
[341678742,1731087342877,172.320713,0.00013973,2]
[341678752,1731087601291,265.35,0.00025,120]
[341678753,1731087647480,173.32322,0.00020593,2]
[341678756,1731087827820,694.44444444,0.00020843,2]
[341678757,1731087944921,-504.396443,0.00020999,2]
[341678758,1731087944943,-3000.0,0.00021623,2]
[341678759,1731087944964,-300.0,0.00021816,2]
[341678760,1731087944986,-300.0,0.00021816,2]
[341678761,1731087945008,-2202.48201072,0.00021817,2]
[341678762,1731087945029,-2077.57435381,0.00021817,2]
[341678763,1731087945049,-500.0,0.00021916,2]
[341678764,1731087945070,-334.67532527,0.00021916,2]
[341678765,1731087945091,-290.67120369,0.00021917,2]
[341678766,1731087945111,-500.0,0.00021917,2]
[341678767,1731087945133,-500.0,0.00021917,2]
[341678768,1731087945154,-338.97697388,0.00021917,2]
[341678769,1731087945175,-500.0,0.00021917,2]
[341678770,1731087945196,-500.0,0.00021917,2]
[341678771,1731087945217,-500.0,0.00021917,2]
[341678772,1731087945241,-500.0,0.00021917,2]
[341678773,1731087945262,-500.0,0.00021917,2]
[341678774,1731087945285,-503.70199357,0.00021917,2]
[341678775,1731087945308,-500.0,0.00021917,2]
[341678776,1731087945331,-257.7,0.00021917,2]
[341678777,1731087945352,-500.0,0.00021917,2]
[341678778,1731087945373,-500.0,0.00021917,2]
[341678779,1731087945395,-500.0,0.00021917,2]
[341678780,1731087945416,-500.0,0.00021917,2]
[341678781,1731087945437,-500.0,0.00021917,2]
[341678782,1731087945459,-500.0,0.00021917,2]
[341678783,1731087945481,-240.96507163,0.00021917,2]
[341678784,1731087945504,-500.0,0.00021917,2]
[341678785,1731087945527,-199.02025279,0.00021917,2]
[341678786,1731087945549,-500.0,0.00021917,2]
[341678787,1731087945572,-511.0489784,0.00021917,2]
[341678788,1731087945594,-504.43567823,0.00021917,2]
[341678789,1731087945615,-383.22170504,0.00021917,2]
[341678790,1731087945638,-500.0,0.00021917,2]
[341678791,1731087945660,-500.0,0.00021917,2]
[341678792,1731087945686,-500.0,0.00021917,2]
[341678793,1731087945707,-200.0,0.00021917,2]
[341678794,1731087945737,-500.0,0.00021917,2]
[341678795,1731087945761,-248.6593268,0.00021917,2]
[341678796,1731087945784,-500.0,0.00021917,2]
[341678797,1731087945806,-500.0,0.00021917,2]
[341678798,1731087945829,-502.50709085,0.00021917,2]
[341678799,1731087945852,-500.0,0.00021917,2]
[341678800,1731087945875,-500.0,0.00021917,2]
[341678801,1731087945898,-503.30441183,0.00021917,2]
[341678802,1731087945920,-500.0,0.00021917,2]
[341678803,1731087945944,-500.0,0.00021917,2]
[341678804,1731087945966,-500.0,0.00021917,2]
[341678805,1731087945991,-500.0,0.00021917,2]
[341678806,1731087946014,-601.80495774,0.00021917,2]
[341678807,1731087946036,-506.78733619,0.00021917,2]
[341678808,1731087946058,-500.0,0.00021917,2]
[341678809,1731087946080,-500.0,0.00021917,2]
[341678810,1731087946212,-500.0,0.00021917,2]
[341678811,1731087946235,-538.18870807,0.00021917,2]
[341678812,1731087946257,-500.0,0.00021917,2]
[341678813,1731087946278,-500.0,0.00021917,2]
[341678814,1731087946299,-500.0,0.00021917,2]
[341678815,1731087946319,-500.0,0.00021917,2]
[341678816,1731087946340,-500.0,0.00021917,2]
[341678817,1731087946362,-500.0,0.00021917,2]
[341678818,1731087946384,-500.0,0.00021917,2]
[341678819,1731087946406,-500.0,0.00021917,2]
[341678820,1731087946429,-500.0,0.00021917,2]
[341678821,1731087946451,-500.0,0.00021917,2]
[341678822,1731087946476,-500.0,0.00021917,2]
[341678823,1731087946498,-500.0,0.00021917,2]
[341678824,1731087946519,-500.0,0.00021917,2]
[341678825,1731087946542,-500.0,0.00021917,2]
[341678826,1731087946566,-500.0,0.00021917,2]
[341678827,1731087946588,-500.0,0.00021917,2]
[341678828,1731087946610,-506.20289812,0.00021917,2]
[341678829,1731087946633,-500.0,0.00021917,2]
[341678830,1731087946656,-500.0,0.00021917,2]
[341678831,1731087946679,-500.0,0.00021917,2]
[341678832,1731087946701,-500.0,0.00021917,2]
[341678833,1731087946727,-500.0,0.00021917,2]
[341678834,1731087946748,-500.0,0.00021917,2]
[341678835,1731087946778,-500.0,0.00021917,2]
[341678836,1731087946800,-500.0,0.00021917,2]
[341678837,1731087946822,-500.0,0.00021917,2]
[341678838,1731087946844,-500.0,0.00021917,2]
[341678839,1731087946865,-500.0,0.00021917,2]
[341678840,1731087946886,-500.0,0.00021917,2]
[341678841,1731087946907,-643.21227337,0.00021917,2]
[341678842,1731087946928,-500.0,0.00021917,2]
[341678843,1731087946949,-500.0,0.00021917,2]